[Event "Late-Titled-Tuesday-Blitz-June-25-2024"]
[Site "Chess.com"]
[Date "2024.06.25"]
[Round "9"]
[White "duone"]
[Black "LUISMIGUELOV"]
[Result "0-1"]
[WhiteElo "2357"]
[BlackElo "2246"]
[TimeControl "180+1"]
[EndTime "15:45:27 PDT"]
[Termination "LUISMIGUELOV won by resignation"]

1. e4 {[%clk 0:02:59.9]} 1... c6 {[%clk 0:02:59.7]} 2. d3 {[%clk 0:02:56.8]}
2... d5 {[%clk 0:03:00.1]} 3. Nd2 {[%clk 0:02:57.3]} 3... Nf6 {[%clk 0:02:58.5]}
4. Ngf3 {[%clk 0:02:55.1]} 4... Bg4 {[%clk 0:02:56.3]} 5. h3 {[%clk 0:02:53.4]}
5... Bxf3 {[%clk 0:02:55.4]} 6. Qxf3 {[%clk 0:02:52.3]} 6... e6 {[%clk
0:02:54.1]} 7. g3 {[%clk 0:02:52.8]} 7... Nbd7 {[%clk 0:02:46.3]} 8. Bg2 {[%clk
0:02:52.2]} 8... Bb4 {[%clk 0:02:40.5]} 9. O-O {[%clk 0:02:51]} 9... O-O {[%clk
0:02:39.3]} 10. c3 {[%clk 0:02:49.7]} 10... Ba5 {[%clk 0:02:38.5]} 11. Qe2
{[%clk 0:02:46.9]} 11... Qc7 {[%clk 0:02:33.1]} 12. b4 {[%clk 0:02:41.4]} 12...
Bb6 {[%clk 0:02:32.4]} 13. Bb2 {[%clk 0:02:39.5]} 13... Qxg3 {[%clk 0:02:28.9]}
14. d4 {[%clk 0:02:32.7]} 14... Qg6 {[%clk 0:02:24.2]} 15. e5 {[%clk 0:02:31.5]}
15... Ne8 {[%clk 0:02:23.4]} 16. f4 {[%clk 0:02:31.6]} 16... f5 {[%clk
0:02:21.1]} 17. a4 {[%clk 0:02:28.5]} 17... a5 {[%clk 0:02:19.2]} 18. Ba3 {[%clk
0:02:27.1]} 18... axb4 {[%clk 0:02:17.2]} 19. Bxb4 {[%clk 0:02:27.4]} 19... c5
{[%clk 0:02:17.1]} 20. dxc5 {[%clk 0:02:25.4]} 20... Bxc5+ {[%clk 0:02:16.9]}
21. Bxc5 {[%clk 0:02:25.2]} 21... Nxc5 {[%clk 0:02:16.8]} 22. Qe3 {[%clk
0:02:23.8]} 22... Ne4 {[%clk 0:02:12.6]} 23. Nxe4 {[%clk 0:02:23.7]} 23... fxe4
{[%clk 0:02:06.6]} 24. Rfb1 {[%clk 0:02:12.2]} 24... Rf7 {[%clk 0:02:03.8]} 25.
Kh1 {[%clk 0:02:04.5]} 25... Qh6 {[%clk 0:02:02.3]} 26. Rf1 {[%clk 0:01:57.2]}
26... g6 {[%clk 0:01:59.7]} 27. Qb6 {[%clk 0:01:54.6]} 27... Ra6 {[%clk
0:01:55.5]} 28. Qd8 {[%clk 0:01:50.4]} 28... Qf8 {[%clk 0:01:55.1]} 29. a5
{[%clk 0:01:43.7]} 29... Ng7 {[%clk 0:01:53.1]} 30. Qxf8+ {[%clk 0:01:28.1]}
30... Kxf8 {[%clk 0:01:52.6]} 31. Rfb1 {[%clk 0:01:27.2]} 31... Ke8 {[%clk
0:01:49.2]} 32. Rb6 {[%clk 0:01:25]} 32... Ra7 {[%clk 0:01:40.5]} 33. Rab1
{[%clk 0:01:10.4]} 33... Kd8 {[%clk 0:01:39.5]} 34. R1b5 {[%clk 0:01:01.5]}
34... Kc7 {[%clk 0:01:36.4]} 35. Rc5+ {[%clk 0:01:00.8]} 35... Kd7 {[%clk
0:01:27.7]} 36. Rcb5 {[%clk 0:00:59.8]} 36... Kc8 {[%clk 0:01:24.6]} 37. c4
{[%clk 0:00:42.2]} 37... Rxf4 {[%clk 0:01:10.5]} 38. cxd5 {[%clk 0:00:40.5]}
38... exd5 {[%clk 0:01:10.3]} 39. Rc5+ {[%clk 0:00:38.1]} 39... Kb8 {[%clk
0:01:00.8]} 40. Rxd5 {[%clk 0:00:37.2]} 40... Nf5 {[%clk 0:00:58]} 41. e6 {[%clk
0:00:30.1]} 41... Rf2 {[%clk 0:00:49.1]} 42. Rd8+ {[%clk 0:00:28.4]} 42... Kc7
{[%clk 0:00:48]} 43. Rd7+ {[%clk 0:00:26.6]} 43... Kc8 {[%clk 0:00:47]} 44. Rxh7
{[%clk 0:00:17.9]} 44... Rxa5 {[%clk 0:00:30]} 45. Rbxb7 {[%clk 0:00:12.8]}
45... Ra1+ {[%clk 0:00:18.7]} 46. Kh2 {[%clk 0:00:13.1]} 46... Raa2 {[%clk
0:00:17.9]} 47. Rbc7+ {[%clk 0:00:12.5]} 47... Kb8 {[%clk 0:00:16.8]} 48. Rb7+
{[%clk 0:00:12.6]} 48... Ka8 {[%clk 0:00:16.3]} 49. Rb2 {[%clk 0:00:04.1]} 49...
Raxb2 {[%clk 0:00:14.6]} 50. Rh8+ {[%clk 0:00:04.6]} 50... Kb7 {[%clk
0:00:13.7]} 51. Kh1 {[%clk 0:00:02.4]} 51... Rxg2 {[%clk 0:00:12.6]} 52. Rh7+
{[%clk 0:00:02.8]} 52... Kc6 {[%clk 0:00:12.1]} 53. Rc7+ {[%clk 0:00:02.1]}
53... Kxc7 {[%clk 0:00:11.5]} 54. e7 {[%clk 0:00:02.1]} 54... Nxe7 {[%clk
0:00:11.2]} 55. h4 {[%clk 0:00:01.6]} 55... Rh2+ {[%clk 0:00:11.1]} 56. Kg1
{[%clk 0:00:01.8]} 56... Rbg2+ {[%clk 0:00:10.9]} 57. Kf1 {[%clk 0:00:01.8]}
57... Rg4 {[%clk 0:00:10.4]} 58. h5 {[%clk 0:00:01.2]} 58... gxh5 {[%clk
0:00:09.1]} 59. Ke1 {[%clk 0:00:01.3]} 0-1

[Event "Late-Titled-Tuesday-Blitz-June-25-2024"]
[Site "Chess.com"]
[Date "2024.06.25"]
[Round "9"]
[White "artin10862"]
[Black "legendisback1"]
[Result "1-0"]
[WhiteElo "2929"]
[BlackElo "3021"]
[TimeControl "180+1"]
[EndTime "15:45:44 PDT"]
[Termination "artin10862 won by resignation"]

1. e4 {[%clk 0:02:55.5]} 1... g6 {[%clk 0:02:59.2]} 2. d4 {[%clk 0:02:49.6]}
2... Bg7 {[%clk 0:02:59.2]} 3. Nf3 {[%clk 0:02:50.3]} 3... c6 {[%clk 0:02:57.9]}
4. c3 {[%clk 0:02:47]} 4... d5 {[%clk 0:02:57.7]} 5. exd5 {[%clk 0:02:45.4]}
5... cxd5 {[%clk 0:02:58.6]} 6. Bd3 {[%clk 0:02:45.5]} 6... Nc6 {[%clk
0:02:59.1]} 7. O-O {[%clk 0:02:42.1]} 7... Nf6 {[%clk 0:02:59.7]} 8. Bf4 {[%clk
0:02:41.2]} 8... O-O {[%clk 0:03:00.6]} 9. h3 {[%clk 0:02:39.8]} 9... Bf5 {[%clk
0:03:01]} 10. Be2 {[%clk 0:02:37.3]} 10... Rc8 {[%clk 0:03:00.6]} 11. Nbd2
{[%clk 0:02:36.6]} 11... Qb6 {[%clk 0:03:00.2]} 12. Qb3 {[%clk 0:02:35.1]} 12...
Na5 {[%clk 0:02:49]} 13. Qxb6 {[%clk 0:02:28.3]} 13... axb6 {[%clk 0:02:49.9]}
14. Rfe1 {[%clk 0:02:28]} 14... Bd7 {[%clk 0:02:45.9]} 15. Ne5 {[%clk 0:02:27]}
15... Be8 {[%clk 0:02:40.5]} 16. Bd3 {[%clk 0:02:21.8]} 16... e6 {[%clk
0:02:40.7]} 17. Rac1 {[%clk 0:02:02]} 17... Nh5 {[%clk 0:02:33.1]} 18. Bh2
{[%clk 0:02:00.6]} 18... Bh6 {[%clk 0:02:32.3]} 19. Rc2 {[%clk 0:01:50.8]} 19...
Nf4 {[%clk 0:02:20.9]} 20. Bf1 {[%clk 0:01:41.9]} 20... Nc6 {[%clk 0:02:19.6]}
21. Ng4 {[%clk 0:01:34]} 21... Bg5 {[%clk 0:01:42.1]} 22. Nf3 {[%clk 0:01:03]}
22... h6 {[%clk 0:01:08.3]} 23. h4 {[%clk 0:00:43.4]} 23... f5 {[%clk
0:01:07.2]} 24. Ne3 {[%clk 0:00:36]} 24... Nh3+ {[%clk 0:00:42.2]} 25. gxh3
{[%clk 0:00:36.9]} 25... Bf6 {[%clk 0:00:43.1]} 26. Rcc1 {[%clk 0:00:33]} 26...
Na5 {[%clk 0:00:38.5]} 27. Ng2 {[%clk 0:00:26.7]} 27... Bf7 {[%clk 0:00:36.6]}
28. Nf4 {[%clk 0:00:25.4]} 28... Rfe8 {[%clk 0:00:36.5]} 29. Nd3 {[%clk
0:00:25.5]} 29... Nc4 {[%clk 0:00:36]} 30. b3 {[%clk 0:00:25.1]} 30... Na3
{[%clk 0:00:34.5]} 31. Nde5 {[%clk 0:00:22.5]} 31... g5 {[%clk 0:00:32.7]} 32.
hxg5 {[%clk 0:00:21.8]} 32... hxg5 {[%clk 0:00:33.6]} 33. Nxf7 {[%clk
0:00:19.8]} 33... Kxf7 {[%clk 0:00:33.4]} 34. Bd6 {[%clk 0:00:20.2]} 34... Ra8
{[%clk 0:00:34.1]} 35. Ne5+ {[%clk 0:00:20.2]} 35... Kg7 {[%clk 0:00:34]} 36. c4
{[%clk 0:00:16.4]} 36... Red8 {[%clk 0:00:32]} 37. Bc7 {[%clk 0:00:14.7]} 37...
Rdc8 {[%clk 0:00:31.5]} 38. Bxb6 {[%clk 0:00:14.6]} 38... dxc4 {[%clk
0:00:29.4]} 39. bxc4 {[%clk 0:00:14.6]} 39... Ra6 {[%clk 0:00:28]} 40. Bc5
{[%clk 0:00:11.4]} 40... b6 {[%clk 0:00:27.7]} 41. Bb4 {[%clk 0:00:10.9]} 41...
Ra4 {[%clk 0:00:27.1]} 42. Bd6 {[%clk 0:00:09.9]} 42... Rd8 {[%clk 0:00:19.9]}
43. c5 {[%clk 0:00:09.7]} 43... bxc5 {[%clk 0:00:18]} 44. Bxc5 {[%clk
0:00:09.7]} 44... Rd5 {[%clk 0:00:14.6]} 45. Bg2 {[%clk 0:00:08]} 45... Rd8
{[%clk 0:00:13.4]} 46. Nc6 {[%clk 0:00:08.4]} 46... Re8 {[%clk 0:00:13.2]} 47.
d5 {[%clk 0:00:08.4]} 47... e5 {[%clk 0:00:08.1]} 48. d6 {[%clk 0:00:08.6]}
48... Nb5 {[%clk 0:00:08.4]} 49. d7 {[%clk 0:00:08.7]} 49... Rh8 {[%clk
0:00:08.2]} 50. Nxe5 {[%clk 0:00:06.2]} 50... Rxa2 {[%clk 0:00:08.3]} 51. Nc6
{[%clk 0:00:04.7]} 51... Nc3 {[%clk 0:00:05.8]} 52. Kf1 {[%clk 0:00:02.9]} 52...
Ne4 {[%clk 0:00:04.4]} 53. Bxe4 {[%clk 0:00:03]} 53... fxe4 {[%clk 0:00:04.9]}
54. Rxe4 {[%clk 0:00:03.9]} 54... Rxh3 {[%clk 0:00:05.4]} 55. Kg2 {[%clk
0:00:04.6]} 55... Rh8 {[%clk 0:00:03.4]} 56. Bd4 {[%clk 0:00:04.3]} 56... Bxd4
{[%clk 0:00:03]} 57. Rxd4 {[%clk 0:00:05.2]} 57... Rf8 {[%clk 0:00:02.9]} 58.
Rf1 {[%clk 0:00:04.7]} 1-0

[Event "Late-Titled-Tuesday-Blitz-June-25-2024"]
[Site "Chess.com"]
[Date "2024.06.25"]
[Round "9"]
[White "MaxLeto"]
[Black "Bykov_Egor"]
[Result "1-0"]
[WhiteElo "2472"]
[BlackElo "2613"]
[TimeControl "180+1"]
[EndTime "15:45:45 PDT"]
[Termination "MaxLeto won by resignation"]

1. e4 {[%clk 0:02:57.4]} 1... c6 {[%clk 0:02:57.1]} 2. Nf3 {[%clk 0:02:56.2]}
2... d5 {[%clk 0:02:57.7]} 3. Nc3 {[%clk 0:02:56.4]} 3... Bg4 {[%clk 0:02:56]}
4. h3 {[%clk 0:02:56]} 4... Bxf3 {[%clk 0:02:55.8]} 5. Qxf3 {[%clk 0:02:56.9]}
5... e6 {[%clk 0:02:51.5]} 6. d3 {[%clk 0:02:53.5]} 6... Nd7 {[%clk 0:02:48]} 7.
Bd2 {[%clk 0:02:54.1]} 7... Bc5 {[%clk 0:02:42.8]} 8. g4 {[%clk 0:02:53.4]} 8...
Ne7 {[%clk 0:02:40]} 9. Bg2 {[%clk 0:02:53.7]} 9... Ng6 {[%clk 0:02:39.1]} 10.
Qg3 {[%clk 0:02:49.7]} 10... Qh4 {[%clk 0:02:26.6]} 11. Ne2 {[%clk 0:02:25]}
11... Qxg3 {[%clk 0:02:24.3]} 12. fxg3 {[%clk 0:02:25.4]} 12... Bb6 {[%clk
0:01:55.4]} 13. Nf4 {[%clk 0:02:24.3]} 13... Nge5 {[%clk 0:01:43.9]} 14. Rf1
{[%clk 0:02:18]} 14... O-O {[%clk 0:01:42.8]} 15. O-O-O {[%clk 0:02:13.4]} 15...
Rae8 {[%clk 0:01:16.6]} 16. Rde1 {[%clk 0:02:13.7]} 16... Ng6 {[%clk 0:01:14.7]}
17. Bb4 {[%clk 0:02:07]} 17... Bc5 {[%clk 0:01:09.3]} 18. Bc3 {[%clk 0:02:02.7]}
18... d4 {[%clk 0:01:01]} 19. Bd2 {[%clk 0:02:02.5]} 19... e5 {[%clk 0:01:00]}
20. Nxg6 {[%clk 0:01:56.4]} 20... fxg6 {[%clk 0:00:55.4]} 21. g5 {[%clk
0:01:52.3]} 21... Rxf1 {[%clk 0:00:49.8]} 22. Rxf1 {[%clk 0:01:51.4]} 22... Rf8
{[%clk 0:00:50.5]} 23. h4 {[%clk 0:01:49.3]} 23... Rxf1+ {[%clk 0:00:48.1]} 24.
Bxf1 {[%clk 0:01:50.2]} 24... Kf7 {[%clk 0:00:43.3]} 25. Bh3 {[%clk 0:01:50.5]}
25... Ke7 {[%clk 0:00:42.8]} 26. b4 {[%clk 0:01:27.6]} 26... Bd6 {[%clk
0:00:42.6]} 27. a4 {[%clk 0:01:22.3]} 27... Nf8 {[%clk 0:00:39.1]} 28. Bc8
{[%clk 0:01:17.6]} 28... b6 {[%clk 0:00:37.2]} 29. Kb2 {[%clk 0:01:16.2]} 29...
Nd7 {[%clk 0:00:24]} 30. Bb7 {[%clk 0:01:04.9]} 30... Nb8 {[%clk 0:00:23]} 31.
Kb3 {[%clk 0:00:59.6]} 31... Kd7 {[%clk 0:00:20.2]} 32. b5 {[%clk 0:00:50.9]}
32... Kc7 {[%clk 0:00:20.2]} 33. Ba8 {[%clk 0:00:49.2]} 33... a6 {[%clk
0:00:17.6]} 34. Kc4 {[%clk 0:00:47.5]} 34... axb5+ {[%clk 0:00:15.1]} 35. axb5
{[%clk 0:00:48.4]} 35... cxb5+ {[%clk 0:00:08.4]} 36. Kd5 {[%clk 0:00:43.4]}
36... Na6 {[%clk 0:00:06.8]} 37. Ke6 {[%clk 0:00:42]} 37... b4 {[%clk
0:00:04.2]} 38. Kf7 {[%clk 0:00:35.6]} 38... b3 {[%clk 0:00:04.1]} 39. cxb3
{[%clk 0:00:34.6]} 39... Nc5 {[%clk 0:00:04.1]} 40. Kxg7 {[%clk 0:00:31.4]}
40... Nxb3 {[%clk 0:00:03.2]} 41. Be1 {[%clk 0:00:29.6]} 41... Nc5 {[%clk
0:00:03.1]} 42. Kxh7 {[%clk 0:00:26.5]} 42... Nxd3 {[%clk 0:00:03.8]} 43. Bd2
{[%clk 0:00:25.8]} 43... Bb4 {[%clk 0:00:03.9]} 44. Kxg6 {[%clk 0:00:15.6]}
44... Bxd2 {[%clk 0:00:04.1]} 45. h5 {[%clk 0:00:16.4]} 45... Bxg5 {[%clk
0:00:02]} 46. Kxg5 {[%clk 0:00:15.6]} 46... Nc5 {[%clk 0:00:02.7]} 47. h6 {[%clk
0:00:10.4]} 47... d3 {[%clk 0:00:03.2]} 48. h7 {[%clk 0:00:10.7]} 48... d2
{[%clk 0:00:03.9]} 49. h8=Q {[%clk 0:00:11.1]} 49... d1=Q {[%clk 0:00:04.3]} 50.
Qxe5+ {[%clk 0:00:11.3]} 50... Kc8 {[%clk 0:00:03.7]} 51. Qe8+ {[%clk
0:00:06.5]} 51... Kc7 {[%clk 0:00:03.3]} 52. Qe5+ {[%clk 0:00:05.4]} 52... Kd7
{[%clk 0:00:03]} 53. Bd5 {[%clk 0:00:04.7]} 53... b5 {[%clk 0:00:02.7]} 54. Qf5+
{[%clk 0:00:03.9]} 54... Kd6 {[%clk 0:00:02.5]} 55. Qf6+ {[%clk 0:00:03.9]}
55... Ne6+ {[%clk 0:00:01.4]} 56. Qxe6+ {[%clk 0:00:04]} 56... Kc5 {[%clk
0:00:02.3]} 57. Qc6+ {[%clk 0:00:04.4]} 57... Kd4 {[%clk 0:00:03.2]} 58. Qxb5
{[%clk 0:00:04.5]} 58... Qd2+ {[%clk 0:00:04.1]} 59. Kf5 {[%clk 0:00:04.2]}
59... Qf2+ {[%clk 0:00:04.6]} 60. Ke6 {[%clk 0:00:03.9]} 60... Qxg3 {[%clk
0:00:04.9]} 61. Qb4+ {[%clk 0:00:03.9]} 61... Ke3 {[%clk 0:00:05]} 62. Qb3+
{[%clk 0:00:04.3]} 62... Kf4 {[%clk 0:00:05.9]} 63. Qxg3+ {[%clk 0:00:04.9]}
63... Kxg3 {[%clk 0:00:06.8]} 64. e5 {[%clk 0:00:05.6]} 1-0

[Event "Late-Titled-Tuesday-Blitz-June-25-2024"]
[Site "Chess.com"]
[Date "2024.06.25"]
[Round "9"]
[White "Bilan_Danila"]
[Black "maximnovik"]
[Result "1-0"]
[WhiteElo "2627"]
[BlackElo "2516"]
[TimeControl "180+1"]
[EndTime "15:45:52 PDT"]
[Termination "Bilan_Danila won by resignation"]

1. d4 {[%clk 0:03:00.9]} 1... Nf6 {[%clk 0:02:59.8]} 2. Nf3 {[%clk 0:03:01.1]}
2... e6 {[%clk 0:02:59.5]} 3. g3 {[%clk 0:02:58.5]} 3... b5 {[%clk 0:02:59.3]}
4. Bg2 {[%clk 0:02:59.4]} 4... Bb7 {[%clk 0:02:59.5]} 5. O-O {[%clk 0:02:58.9]}
5... c5 {[%clk 0:02:58.4]} 6. dxc5 {[%clk 0:02:48.5]} 6... Bxc5 {[%clk
0:02:57.9]} 7. Bg5 {[%clk 0:02:48.3]} 7... O-O {[%clk 0:02:56.7]} 8. Nbd2 {[%clk
0:02:48.7]} 8... Be7 {[%clk 0:02:55.5]} 9. Nb3 {[%clk 0:02:43.8]} 9... d6 {[%clk
0:02:48.2]} 10. c3 {[%clk 0:02:34.9]} 10... Nbd7 {[%clk 0:02:47.4]} 11. Qd3
{[%clk 0:02:30.5]} 11... a6 {[%clk 0:02:47.2]} 12. Nfd4 {[%clk 0:02:30.5]} 12...
Qc7 {[%clk 0:02:43.9]} 13. a4 {[%clk 0:02:27.3]} 13... Ne5 {[%clk 0:02:39.1]}
14. Qc2 {[%clk 0:02:19.7]} 14... Bxg2 {[%clk 0:02:37.6]} 15. Kxg2 {[%clk
0:02:20.6]} 15... b4 {[%clk 0:02:33.7]} 16. cxb4 {[%clk 0:02:12]} 16... Qb7+
{[%clk 0:02:33.9]} 17. Kg1 {[%clk 0:02:07.6]} 17... Qxb4 {[%clk 0:02:32.8]} 18.
Bd2 {[%clk 0:02:00.5]} 18... Qb7 {[%clk 0:02:26.7]} 19. Na5 {[%clk 0:01:55.6]}
19... Qe4 {[%clk 0:02:24.7]} 20. Qxe4 {[%clk 0:01:45.3]} 20... Nxe4 {[%clk
0:02:24]} 21. Bb4 {[%clk 0:01:34.6]} 21... Rfc8 {[%clk 0:02:06.8]} 22. Rfc1
{[%clk 0:01:23.9]} 22... Bf6 {[%clk 0:02:01.1]} 23. Nac6 {[%clk 0:01:00.8]}
23... Nxc6 {[%clk 0:01:48.5]} 24. Nxc6 {[%clk 0:01:01.7]} 24... Nc5 {[%clk
0:01:45.5]} 25. Bxc5 {[%clk 0:00:56.5]} 25... Rxc6 {[%clk 0:01:45.3]} 26. Ba3
{[%clk 0:00:52.8]} 26... Rac8 {[%clk 0:01:43.7]} 27. Rxc6 {[%clk 0:00:47.1]}
27... Rxc6 {[%clk 0:01:43.7]} 28. Rb1 {[%clk 0:00:40.7]} 28... Rc2 {[%clk
0:01:41.7]} 29. Kf1 {[%clk 0:00:40]} 29... d5 {[%clk 0:01:35.8]} 30. b4 {[%clk
0:00:26.3]} 30... Ra2 {[%clk 0:01:21.9]} 31. b5 {[%clk 0:00:15.9]} 31... axb5
{[%clk 0:01:10.1]} 32. Rxb5 {[%clk 0:00:10.4]} 32... g5 {[%clk 0:01:08.4]} 33.
Rb3 {[%clk 0:00:08.9]} 33... Rc2 {[%clk 0:00:45.2]} 34. a5 {[%clk 0:00:08.8]}
34... Rc4 {[%clk 0:00:44]} 35. Rb4 {[%clk 0:00:03.6]} 35... Rc3 {[%clk
0:00:29.7]} 36. Rb8+ {[%clk 0:00:03.4]} 36... Kg7 {[%clk 0:00:29.8]} 37. Bf8+
{[%clk 0:00:04.3]} 37... Kg6 {[%clk 0:00:29.9]} 38. a6 {[%clk 0:00:05.2]} 38...
Rc1+ {[%clk 0:00:29.9]} 39. Kg2 {[%clk 0:00:05.9]} 39... Ra1 {[%clk 0:00:30.2]}
40. Ra8 {[%clk 0:00:05.9]} 40... Bd4 {[%clk 0:00:29.2]} 41. e3 {[%clk
0:00:06.5]} 41... Bb6 {[%clk 0:00:28.6]} 42. Be7 {[%clk 0:00:06.9]} 42... d4
{[%clk 0:00:28.3]} 43. exd4 {[%clk 0:00:06.4]} 43... Bxd4 {[%clk 0:00:28.5]} 44.
Rg8+ {[%clk 0:00:06.4]} 44... Bg7 {[%clk 0:00:25.2]} 45. Bf8 {[%clk 0:00:06.3]}
45... Rxa6 {[%clk 0:00:22.8]} 46. Bxg7 {[%clk 0:00:06.7]} 46... h6 {[%clk
0:00:20.6]} 47. Bf8+ {[%clk 0:00:06.1]} 47... Kh7 {[%clk 0:00:20]} 48. Rg7+
{[%clk 0:00:06.3]} 48... Kh8 {[%clk 0:00:20.2]} 49. Rxf7 {[%clk 0:00:06.9]}
49... Kg8 {[%clk 0:00:20.6]} 50. Rf3 {[%clk 0:00:06.4]} 50... e5 {[%clk
0:00:19.3]} 51. Bc5 {[%clk 0:00:04.9]} 51... Rc6 {[%clk 0:00:18.8]} 52. Be3
{[%clk 0:00:04.9]} 52... Kg7 {[%clk 0:00:17.6]} 53. g4 {[%clk 0:00:05.2]} 53...
Rc4 {[%clk 0:00:16.8]} 54. h3 {[%clk 0:00:05.2]} 54... Rc6 {[%clk 0:00:14.3]}
55. Rf5 {[%clk 0:00:05.8]} 55... Re6 {[%clk 0:00:14.4]} 56. Kf3 {[%clk
0:00:06.4]} 56... e4+ {[%clk 0:00:14]} 57. Ke2 {[%clk 0:00:07.1]} 57... Kg6
{[%clk 0:00:14.9]} 58. Bd4 {[%clk 0:00:07.1]} 58... Ra6 {[%clk 0:00:13.6]} 59.
Be3 {[%clk 0:00:07]} 59... Ra2+ {[%clk 0:00:13.8]} 60. Kf1 {[%clk 0:00:07.1]}
60... Ra1+ {[%clk 0:00:14.3]} 61. Kg2 {[%clk 0:00:08]} 61... Ra6 {[%clk
0:00:13.7]} 62. Rb5 {[%clk 0:00:08.6]} 62... Re6 {[%clk 0:00:13.8]} 63. Rb6
{[%clk 0:00:09]} 63... Rxb6 {[%clk 0:00:13.5]} 64. Bxb6 {[%clk 0:00:09.9]} 64...
Kf6 {[%clk 0:00:14.1]} 65. Be3 {[%clk 0:00:10.5]} 1-0

[Event "Late-Titled-Tuesday-Blitz-June-25-2024"]
[Site "Chess.com"]
[Date "2024.06.25"]
[Round "9"]
[White "KebabJangles"]
[Black "medinapazmiguel1968"]
[Result "0-1"]
[WhiteElo "2257"]
[BlackElo "2469"]
[TimeControl "180+1"]
[EndTime "15:46:00 PDT"]
[Termination "medinapazmiguel1968 won by checkmate"]

1. d4 {[%clk 0:03:00.9]} 1... Nf6 {[%clk 0:02:59.5]} 2. c4 {[%clk 0:03:00.6]}
2... g6 {[%clk 0:02:58.5]} 3. g3 {[%clk 0:02:59.9]} 3... Bg7 {[%clk 0:02:58.4]}
4. Bg2 {[%clk 0:03:00]} 4... O-O {[%clk 0:02:57.9]} 5. Nc3 {[%clk 0:02:59.2]}
5... d6 {[%clk 0:02:57.9]} 6. Nf3 {[%clk 0:02:58.4]} 6... Nbd7 {[%clk
0:02:57.6]} 7. O-O {[%clk 0:02:57.6]} 7... e5 {[%clk 0:02:58.2]} 8. e4 {[%clk
0:02:58.2]} 8... Re8 {[%clk 0:02:56.8]} 9. h3 {[%clk 0:02:57.6]} 9... exd4
{[%clk 0:02:54.9]} 10. Nxd4 {[%clk 0:02:58.5]} 10... Nc5 {[%clk 0:02:55.2]} 11.
Re1 {[%clk 0:02:58.5]} 11... a5 {[%clk 0:02:55.5]} 12. Bf4 {[%clk 0:02:51.1]}
12... Nfd7 {[%clk 0:02:23.7]} 13. Be3 {[%clk 0:02:49.2]} 13... Ne5 {[%clk
0:02:22.9]} 14. b3 {[%clk 0:02:44]} 14... Ned3 {[%clk 0:02:12.8]} 15. Re2 {[%clk
0:02:43.8]} 15... c6 {[%clk 0:02:07.4]} 16. Rd2 {[%clk 0:02:43.1]} 16... Ne5
{[%clk 0:01:56.9]} 17. f4 {[%clk 0:02:34.5]} 17... Ned7 {[%clk 0:01:55]} 18. Rc1
{[%clk 0:02:32.5]} 18... f5 {[%clk 0:01:47.8]} 19. Nc2 {[%clk 0:02:15]} 19...
Bxc3 {[%clk 0:01:42.8]} 20. Rxd6 {[%clk 0:02:14.7]} 20... Nxe4 {[%clk
0:01:37.5]} 21. Bxe4 {[%clk 0:02:12.9]} 21... Rxe4 {[%clk 0:01:38.4]} 22. Qd3
{[%clk 0:02:12.8]} 22... Bf6 {[%clk 0:01:25.6]} 23. Rd1 {[%clk 0:02:09.2]} 23...
Qe7 {[%clk 0:01:22.5]} 24. c5 {[%clk 0:02:05.9]} 24... Kg7 {[%clk 0:01:06.7]}
25. Kf2 {[%clk 0:02:03.6]} 25... Re6 {[%clk 0:01:01.8]} 26. Rxd7 {[%clk
0:02:02]} 26... Bxd7 {[%clk 0:00:59.5]} 27. Qxd7 {[%clk 0:02:02.9]} 27... Qxd7
{[%clk 0:00:44.6]} 28. Rxd7+ {[%clk 0:02:03.8]} 28... Re7 {[%clk 0:00:45.1]} 29.
Rd6 {[%clk 0:01:52.9]} 29... Rae8 {[%clk 0:00:43.2]} 30. g4 {[%clk 0:01:52.5]}
30... Re6 {[%clk 0:00:33.2]} 31. Rd7+ {[%clk 0:01:18.9]} 31... R8e7 {[%clk
0:00:31.4]} 32. Rd3 {[%clk 0:01:18.5]} 32... fxg4 {[%clk 0:00:29.7]} 33. hxg4
{[%clk 0:01:19.4]} 33... h5 {[%clk 0:00:28.9]} 34. g5 {[%clk 0:01:18.5]} 34...
Bb2 {[%clk 0:00:29.4]} 35. Kf3 {[%clk 0:01:11.4]} 35... Kf7 {[%clk 0:00:25.3]}
36. a3 {[%clk 0:01:05.3]} 36... Ke8 {[%clk 0:00:24.1]} 37. b4 {[%clk 0:01:05.2]}
37... a4 {[%clk 0:00:22.4]} 38. Rd1 {[%clk 0:00:56]} 38... Rd7 {[%clk
0:00:20.5]} 39. Rb1 {[%clk 0:00:55]} 39... Bc3 {[%clk 0:00:16.9]} 40. Rh1 {[%clk
0:00:52.6]} 40... Bd2 {[%clk 0:00:13.1]} 41. Bd4 {[%clk 0:00:48.9]} 41... Kf7
{[%clk 0:00:06.7]} 42. Rd1 {[%clk 0:00:44.9]} 42... Bc3 {[%clk 0:00:05.7]} 43.
Rd3 {[%clk 0:00:44.1]} 43... Bxd4 {[%clk 0:00:05.7]} 44. Nxd4 {[%clk 0:00:45]}
44... Re1 {[%clk 0:00:05.9]} 45. Rd2 {[%clk 0:00:43.9]} 45... Ra1 {[%clk
0:00:05.4]} 46. Ke4 {[%clk 0:00:41.5]} 46... Rxa3 {[%clk 0:00:05.7]} 47. Re2
{[%clk 0:00:41.2]} 47... Ra1 {[%clk 0:00:05]} 48. Nf3 {[%clk 0:00:40.1]} 48...
Rad1 {[%clk 0:00:04.5]} 49. Ne5+ {[%clk 0:00:39.7]} 49... Kg7 {[%clk 0:00:05.2]}
50. Nxd7 {[%clk 0:00:40.6]} 50... Rxd7 {[%clk 0:00:05.5]} 51. Ra2 {[%clk
0:00:40.7]} 51... Re7+ {[%clk 0:00:06]} 52. Kf3 {[%clk 0:00:40.8]} 52... Re1
{[%clk 0:00:05.6]} 53. Rxa4 {[%clk 0:00:40.5]} 53... Rb1 {[%clk 0:00:06.3]} 54.
Kg3 {[%clk 0:00:39.5]} 54... Kf7 {[%clk 0:00:06.8]} 55. Kf3 {[%clk 0:00:37.7]}
55... Ke6 {[%clk 0:00:07.3]} 56. Ke4 {[%clk 0:00:37.3]} 56... Rb2 {[%clk
0:00:07.5]} 57. Ke3 {[%clk 0:00:25.5]} 57... Kf5 {[%clk 0:00:06.8]} 58. Ra8
{[%clk 0:00:21.9]} 58... Rb3+ {[%clk 0:00:07]} 59. Kd4 {[%clk 0:00:18.6]} 59...
Rxb4+ {[%clk 0:00:07.5]} 60. Kc3 {[%clk 0:00:19.1]} 60... Rxf4 {[%clk
0:00:07.7]} 61. Rb8 {[%clk 0:00:19.2]} 61... Kxg5 {[%clk 0:00:07.1]} 62. Rxb7
{[%clk 0:00:19.1]} 62... Rf5 {[%clk 0:00:07.3]} 63. Kc4 {[%clk 0:00:18.9]} 63...
Rf4+ {[%clk 0:00:07.6]} 64. Kc3 {[%clk 0:00:19.1]} 64... h4 {[%clk 0:00:08.3]}
65. Rb6 {[%clk 0:00:19]} 65... Rf6 {[%clk 0:00:08.7]} 66. Ra6 {[%clk 0:00:18.5]}
66... h3 {[%clk 0:00:09]} 67. Ra1 {[%clk 0:00:19]} 67... Kh4 {[%clk 0:00:09.5]}
68. Kd4 {[%clk 0:00:19.9]} 68... g5 {[%clk 0:00:09.9]} 69. Ke4 {[%clk
0:00:20.8]} 69... g4 {[%clk 0:00:09.8]} 70. Ke5 {[%clk 0:00:19.7]} 70... Rh6
{[%clk 0:00:10.4]} 71. Kf5 {[%clk 0:00:20]} 71... g3 {[%clk 0:00:11]} 72. Ra4+
{[%clk 0:00:20]} 72... Kh5 {[%clk 0:00:11.5]} 73. Kf4 {[%clk 0:00:20.1]} 73...
g2 {[%clk 0:00:11.6]} 74. Ra1 {[%clk 0:00:19.5]} 74... Rg6 {[%clk 0:00:12.2]}
75. Kf3 {[%clk 0:00:17.8]} 75... g1=Q {[%clk 0:00:11.9]} 76. Ra8 {[%clk
0:00:18.1]} 76... Qf1+ {[%clk 0:00:11.4]} 77. Ke4 {[%clk 0:00:17.4]} 77... Qc4+
{[%clk 0:00:12]} 78. Ke5 {[%clk 0:00:18.3]} 78... Qxc5+ {[%clk 0:00:12.5]} 79.
Ke4 {[%clk 0:00:19.2]} 79... Qd4+ {[%clk 0:00:12.8]} 80. Kxd4 {[%clk 0:00:19.5]}
80... h2 {[%clk 0:00:12.8]} 81. Rh8+ {[%clk 0:00:19.5]} 81... Rh6 {[%clk
0:00:13.5]} 82. Rg8 {[%clk 0:00:19.1]} 82... h1=Q {[%clk 0:00:13.4]} 83. Kc5
{[%clk 0:00:19]} 83... Qd5+ {[%clk 0:00:13.8]} 84. Kb6 {[%clk 0:00:19.5]} 84...
Qb5+ {[%clk 0:00:14.1]} 85. Kc7 {[%clk 0:00:20]} 85... Rh7+ {[%clk 0:00:14.5]}
86. Kd6 {[%clk 0:00:20.5]} 86... Qd5# {[%clk 0:00:14.8]} 0-1